{"text_format":"1","workbook":"xlsx","n_sheets":7,"sheets":["1. Начальные данные","2. Пров.суммы","3. ФК-1","4. Объекты КМ","5. Оценка кач-ва","Показатели качества","Контроль"],"not_rendered":{"charts":0,"images":0,"macros":1,"external_links":4,"defined_names":43,"comments":5,"pivot_tables":0},"unopened":[],"bounds":{"document_bytes":16777216,"sheet_cells":100000,"rows_first":2000,"rows_last":500,"rows_between":2000,"halvings":0,"cell_chars":16384,"cell_head_chars":4096},"cells_cut":0,"cells_raw":0,"read":"whole","date_system":"1900"}

{"sheet":"1. Начальные данные","index":0,"n_rows":22,"n_cols":22,"rows_kept":22,"cut":false,"hidden":false,"merged":[[11,0,12,8],[25,3,34,8],[21,0,21,2],[21,3,21,8],[20,0,20,2],[20,3,20,8],[15,0,15,2],[15,3,15,8],[17,3,17,4],[19,0,19,2],[19,3,19,8],[16,0,16,2],[17,0,17,2],[17,5,17,6],[16,3,16,7]]}
[null,null,null,null,null,null,null,null,null,null,null,null,null,null,null,null,null,null,null,null,"Версия:","4.0м"]
[]
[]
[]
[]
[]
[]
[]
[]
[]
[]
["Информация об исполнении полномочий\nпо внутреннему муниципальному финансовому контролю"]
[]
[]
[]
[]
["Наименование МО:",null,null,"МР Нуримановский район РБ"]
["По состоянию на:",null,null,"1 июля",null,"2021 года"]
[]
["Исполнитель:",null,null,"Гайнетдинова Олеся Николаевна"]
[]
["Телефон:",null,null,"8-34776-222102, сот. 8-961-370-72-72"]

{"sheet":"2. Пров.суммы","index":1,"n_rows":11,"n_cols":5,"rows_kept":11,"cut":false,"hidden":false,"merged":[[10,7,10,10],[10,11,10,14],[10,15,10,18],[0,0,0,4],[1,0,1,4],[2,0,2,4],[4,1,4,4],[4,0,5,0]]}
["Сведения о проверенных средствах"]
[{"$f":"CONCATENATE(\"по состоянию на \",'1. Начальные данные'!D18,\" \",'1. Начальные данные'!F18)","v":"по состоянию на 1 июля 2021 года"}]
[{"$f":"'1. Начальные данные'!D17","v":"МР Нуримановский район РБ"}]
[null,null,null,null,"в тыс.рублей"]
["Наименование бюджета","Проверено в I полугодии 2021 года по средствам"]
[null,"2018 года","2019 года","2020 года","2021 года"]
["Средства бюджета Республики Башкортостан"]
["Средства бюджета муниципального образования",2980.2,3038.5,3120,432.1]
["Средства, полученные от приносящей доход деятельности"]
["Прочие средства"]
["Проверено всего",{"$f":"SUM(B7:B10)","v":2980.2},{"$f":"SUM(C7:C10)","v":3038.5},{"$f":"SUM(D7:D10)","v":3120},432.1]

{"sheet":"3. ФК-1","index":2,"n_rows":123,"n_cols":39,"rows_kept":123,"cut":false,"hidden":false,"merged":[[6,38,10,38],[0,0,0,37],[2,0,2,37],[3,0,3,37],[5,0,5,2],[5,3,5,29],[5,30,5,32],[5,33,5,37],[6,0,6,2],[6,3,6,29],[6,30,6,32],[6,33,6,37],[4,22,4,37],[1,0,1,37],[9,0,9,2],[9,3,9,29],[9,30,9,32],[9,33,9,37],[10,0,10,2],[10,3,10,29],[10,30,10,32],[10,33,10,37],[7,0,7,2],[7,3,7,29],[7,30,7,32],[7,33,7,37],[8,0,8,2],[8,3,8,29],[8,30,8,32],[8,33,8,37],[13,0,13,2],[13,3,13,29],[13,30,13,32],[13,33,13,37],[14,0,14,2],[14,3,14,29],[14,30,14,32],[14,33,14,37],[11,0,11,2],[11,3,11,29],[11,30,11,32],[11,33,11,37],[12,0,12,2],[12,3,12,29],[12,30,12,32],[12,33,12,37],[17,0,17,2],[17,3,17,29],[17,30,17,32],[17,33,17,37],[18,0,18,2],[18,3,18,29],[18,30,18,32],[18,33,18,37],[15,0,15,2],[15,3,15,29],[15,30,15,32],[15,33,15,37],[16,0,16,2],[16,3,16,29],[16,30,16,32],[16,33,16,37],[21,0,21,2],[21,3,21,29],[21,30,21,32],[21,33,21,37],[22,0,22,2],[22,3,22,29],[22,30,22,32],[22,33,22,37],[19,0,19,2],[19,3,19,29],[19,30,19,32],[19,33,19,37],[20,0,20,2],[20,3,20,29],[20,30,20,32],[20,33,20,37],[26,0,26,2],[26,3,26,29],[26,30,26,32],[26,33,26,37],[27,0,27,2],[27,3,27,29],[27,30,27,32],[27,33,27,37],[23,0,23,2],[23,3,23,29],[23,30,23,32],[23,33,23,37],[24,0,24,2],[24,3,24,29],[24,30,24,32],[24,33,24,37],[25,0,25,2],[25,3,25,29],[25,30,25,32],[25,33,25,37],[31,0,31,2],[31,3,31,29],[31,30,31,32],[31,33,31,37],[32,0,32,2],[32,3,32,29],[32,30,32,32],[32,33,32,37],[28,0,28,2],[28,3,28,29],[28,30,28,32],[28,33,28,37],[29,0,29,2],[29,3,29,29],[29,30,29,32],[29,33,29,37],[30,0,30,2],[30,3,30,29],[30,30,30,32],[30,33,30,37],[36,0,36,2],[36,3,36,29],[36,30,36,32],[36,33,36,37],[37,0,37,2],[37,3,37,29],[37,30,37,32],[37,33,37,37],[33,0,33,2],[33,3,33,29],[33,30,33,32],[33,33,33,37],[34,0,34,2],[34,3,34,29],[34,30,34,32],[34,33,34,37],[35,0,35,2],[35,3,35,29],[35,30,35,32],[35,33,35,37],[41,0,41,2],[41,3,41,29],[41,30,41,32],[41,33,41,37],[42,0,42,2],[42,3,42,29],[42,30,42,32],[42,33,42,37],[38,0,38,2],[38,3,38,29],[38,30,38,32],[38,33,38,37],[39,0,39,2],[39,3,39,29],[39,30,39,32],[39,33,39,37],[40,0,40,2],[40,3,40,29],[40,30,40,32],[40,33,40,37],[46,0,46,2],[46,3,46,29],[46,30,46,32],[46,33,46,37],[47,0,47,2],[47,3,47,29],[47,30,47,32],[47,33,47,37],[43,0,43,2],[43,3,43,29],[43,30,43,32],[43,33,43,37],[44,0,44,2],[44,3,44,29],[44,30,44,32],[44,33,44,37],[45,0,45,2],[45,3,45,29],[45,30,45,32],[45,33,45,37],[48,0,48,2],[48,3,48,29],[48,30,48,32],[48,33,48,37],[49,0,49,2],[49,3,49,29],[49,30,49,32],[49,33,49,37],[50,0,50,2],[50,3,50,29],[50,30,50,32],[50,33,50,37],[53,0,53,2],[53,3,53,29],[53,30,53,32],[53,33,53,37],[54,0,54,2],[54,3,54,29],[54,30,54,32],[54,33,54,37],[51,0,51,2],[51,3,51,29],[51,30,51,32],[51,33,51,37],[52,0,52,2],[52,3,52,29],[52,30,52,32],[52,33,52,37],[60,0,60,2],[60,3,60,29],[60,30,60,32],[60,33,60,37],[61,0,61,2],[61,3,61,29],[61,30,61,32],[61,33,61,37],[56,30,56,32],[56,33,56,37],[57,0,57,2],[57,3,57,29],[57,30,57,32],[57,33,57,37],[59,0,59,2],[59,3,59,29],[59,30,59,32],[59,33,59,37],[69,0,69,2],[69,3,69,29],[69,30,69,32],[69,33,69,37],[65,0,65,2],[65,3,65,29],[65,30,65,32],[65,33,65,37],[66,0,66,2],[66,3,66,29],[66,30,66,32],[66,33,66,37],[68,0,68,2],[68,3,68,29],[68,30,68,32],[68,33,68,37],[67,0,67,2],[67,3,67,29],[67,30,67,32],[67,33,67,37],[72,0,72,2],[72,3,72,29],[72,30,72,32],[72,33,72,37],[73,0,73,2],[73,3,73,29],[73,30,73,32],[73,33,73,37],[70,0,70,2],[70,3,70,29],[70,30,70,32],[70,33,70,37],[71,0,71,2],[71,3,71,29],[71,30,71,32],[71,33,71,37],[76,0,76,2],[76,3,76,29],[76,30,76,32],[76,33,76,37],[77,0,77,2],[77,3,77,29],[77,30,77,32],[77,33,77,37],[74,0,74,2],[74,3,74,29],[74,30,74,32],[74,33,74,37],[75,0,75,2],[75,3,75,29],[75,30,75,32],[75,33,75,37],[80,0,80,2],[80,3,80,29],[80,30,80,32],[80,33,80,37],[81,0,81,2],[81,3,81,29],[81,30,81,32],[81,33,81,37],[78,0,78,2],[78,3,78,29],[78,30,78,32],[78,33,78,37],[79,0,79,2],[79,3,79,29],[79,30,79,32],[79,33,79,37],[84,0,84,2],[84,3,84,29],[84,30,84,32],[84,33,84,37],[85,0,85,2],[85,3,85,29],[85,30,85,32],[85,33,85,37],[82,0,82,2],[82,3,82,29],[82,30,82,32],[82,33,82,37],[83,0,83,2],[83,3,83,29],[83,30,83,32],[83,33,83,37],[88,0,88,2],[88,3,88,29],[88,30,88,32],[88,33,88,37],[89,0,89,2],[89,3,89,29],[89,30,89,32],[89,33,89,37],[86,0,86,2],[86,3,86,29],[86,30,86,32],[86,33,86,37],[87,0,87,2],[87,3,87,29],[87,30,87,32],[87,33,87,37],[90,0,90,2],[90,3,90,29],[90,30,90,32],[90,33,90,37],[91,0,91,2],[91,3,91,29],[91,30,91,32],[91,33,91,37],[92,0,92,2],[92,3,92,29],[92,30,92,32],[92,33,92,37],[101,33,101,37],[99,0,99,2],[99,3,99,29],[99,30,99,32],[99,33,99,37],[94,0,94,2],[94,3,94,29],[94,30,94,32],[94,33,94,37],[100,0,100,2],[100,3,100,29],[100,30,100,32],[100,33,100,37],[97,0,97,2],[97,3,97,29],[97,30,97,32],[97,33,97,37],[101,0,101,2],[101,3,101,29],[101,30,101,32],[108,33,108,37],[109,0,109,2],[109,3,109,29],[109,30,109,32],[109,33,109,37],[106,30,106,32],[106,33,106,37],[107,30,107,32],[107,33,107,37],[106,0,106,2],[106,3,106,29],[107,0,107,2],[107,3,107,29],[108,0,108,2],[108,3,108,29],[108,30,108,32],[112,33,112,37],[113,0,113,2],[113,3,113,29],[113,30,113,32],[113,33,113,37],[110,0,110,2],[110,3,110,29],[110,30,110,32],[110,33,110,37],[111,0,111,2],[111,3,111,29],[111,30,111,32],[111,33,111,37],[112,0,112,2],[112,3,112,29],[112,30,112,32],[122,0,122,2],[121,0,121,2],[118,0,118,2],[121,3,121,29],[121,30,121,32],[121,33,121,37],[122,3,122,29],[122,30,122,32],[122,33,122,37],[118,3,118,29],[118,30,118,32],[118,33,118,37],[119,0,119,2],[119,3,119,29],[119,30,119,32],[119,33,119,37],[120,0,120,2],[120,3,120,29],[120,30,120,32],[120,33,120,37],[62,0,62,2],[62,3,62,29],[62,30,62,32],[62,33,62,37],[64,0,64,2],[64,3,64,29],[64,30,64,32],[63,30,63,32],[63,33,63,37],[64,33,64,37],[63,0,63,2],[63,3,63,29],[55,0,55,2],[55,3,55,29],[55,30,55,32],[55,33,55,37],[56,0,56,2],[56,3,56,29],[58,0,58,2],[58,3,58,29],[58,30,58,32],[58,33,58,37],[93,33,93,37],[98,0,98,2],[98,3,98,29],[98,30,98,32],[98,33,98,37],[95,0,95,2],[95,3,95,29],[95,30,95,32],[95,33,95,37],[96,0,96,2],[96,3,96,29],[96,30,96,32],[96,33,96,37],[93,0,93,2],[93,3,93,29],[93,30,93,32],[116,33,116,37],[117,0,117,2],[117,3,117,29],[117,30,117,32],[117,33,117,37],[114,0,114,2],[114,3,114,29],[114,30,114,32],[114,33,114,37],[115,0,115,2],[115,3,115,29],[115,33,115,37],[116,0,116,2],[116,3,116,29],[116,30,116,32],[115,30,115,32],[102,30,102,32],[102,33,102,37],[103,30,103,32],[103,33,103,37],[104,30,104,32],[104,33,104,37],[102,0,102,2],[102,3,102,29],[105,30,105,32],[105,33,105,37],[103,0,103,2],[103,3,103,29],[104,0,104,2],[104,3,104,29],[105,0,105,2],[105,3,105,29]]}
["Сведения о результатах проведенных контрольных мероприятий"]
[{"$f":"CONCATENATE(\"по состоянию на \",'1. Начальные данные'!D18,\" \",'1. Начальные данные'!F18)","v":"по состоянию на 1 июля 2021 года"}]
[{"$f":"'1. Начальные данные'!D17","v":"МР Нуримановский район РБ"}]
[]
[]
["№ п/п",null,null,"Наименование показателя",null,null,null,null,null,null,null,null,null,null,null,null,null,null,null,null,null,null,null,null,null,null,null,null,null,null,"Код строки",null,null,"Значение показателя"]
["I",null,null,"Проведено ревизий и проверок (единиц), в том числе:",null,null,null,null,null,null,null,null,null,null,null,null,null,null,null,null,null,null,null,null,null,null,null,null,null,null,"1",null,null,{"$f":"SUM(AH8:AL9)","v":2},null,null,null,null,{"$f":"IF(OR(AH7=SUM(AH10:AL11),AH7=0),\"\",\"Не сходится количество контрольных мероприятий (строка 1) с суммой плановых и внеплановых ревизий и проверок (строки 2,3)\")","v":""}]
[null,null,null,"ревизий",null,null,null,null,null,null,null,null,null,null,null,null,null,null,null,null,null,null,null,null,null,null,null,null,null,null,"1/1",null,null,1]
[null,null,null,"проверок",null,null,null,null,null,null,null,null,null,null,null,null,null,null,null,null,null,null,null,null,null,null,null,null,null,null,"1/2",null,null,1]
[null,null,null,"плановые ревизии и проверки (из строки 1)",null,null,null,null,null,null,null,null,null,null,null,null,null,null,null,null,null,null,null,null,null,null,null,null,null,null,"2",null,null,1]
[null,null,null,"внеплановые ревизии и проверки (из строки 1)",null,null,null,null,null,null,null,null,null,null,null,null,null,null,null,null,null,null,null,null,null,null,null,null,null,null,"3",null,null,1]
[null,null,null,"количество проведенных выездных проверок и (или) ревизий, единиц",null,null,null,null,null,null,null,null,null,null,null,null,null,null,null,null,null,null,null,null,null,null,null,null,null,null,"4",null,null,1]
[null,null,null,"количество проведенных камеральных проверок, единиц",null,null,null,null,null,null,null,null,null,null,null,null,null,null,null,null,null,null,null,null,null,null,null,null,null,null,"5",null,null,1]
[null,null,null,"количество проведенных обследований, единиц",null,null,null,null,null,null,null,null,null,null,null,null,null,null,null,null,null,null,null,null,null,null,null,null,null,null,"6",null,null,0]
[null,null,null,"количество проведенных встречных проверок, единиц",null,null,null,null,null,null,null,null,null,null,null,null,null,null,null,null,null,null,null,null,null,null,null,null,null,null,"7",null,null,0]
[null,null,null,"Ревизии и проверки проведены в объектах контроля, (единиц):",null,null,null,null,null,null,null,null,null,null,null,null,null,null,null,null,null,null,null,null,null,null,null,null,null,null,"8"]
[null,null,null,"Главные распорядители бюджетных средств",null,null,null,null,null,null,null,null,null,null,null,null,null,null,null,null,null,null,null,null,null,null,null,null,null,null,"9",null,null,1]
[null,null,null,"Государственные учреждения (автономные, бюджетные и казенные) и унитарные предприятия РБ",null,null,null,null,null,null,null,null,null,null,null,null,null,null,null,null,null,null,null,null,null,null,null,null,null,null,"10"]
[null,null,null,"Администрации МО, финансовые органы МО",null,null,null,null,null,null,null,null,null,null,null,null,null,null,null,null,null,null,null,null,null,null,null,null,null,null,"11"]
[null,null,null,"Муниципальные учреждения (автономные, бюджетные, казенные и унитарные)",null,null,null,null,null,null,null,null,null,null,null,null,null,null,null,null,null,null,null,null,null,null,null,null,null,null,"12",null,null,1]
[null,null,null,"Прочие юридические лица и ИП",null,null,null,null,null,null,null,null,null,null,null,null,null,null,null,null,null,null,null,null,null,null,null,null,null,null,"13"]
[null,null,null,"Количество проведенных обмеров, осмотров и инвентаризаций ТМЦ, кассы (денежных средств и ценных бумаг и т.п.)",null,null,null,null,null,null,null,null,null,null,null,null,null,null,null,null,null,null,null,null,null,null,null,null,null,null,"14"]
["II",null,null,"Сведения о выявленных ревизиями и проверками финансовых нарушениях ",null,null,null,null,null,null,null,null,null,null,null,null,null,null,null,null,null,null,null,null,null,null,null,null,null,null,"Х",null,null,"Х"]
[null,null,null,"Количество ревизий и проверок, которыми выявлены нарушения – всего: (единиц)",null,null,null,null,null,null,null,null,null,null,null,null,null,null,null,null,null,null,null,null,null,null,null,null,null,null,"15"]
[null,null,null,"в использовании средств бюджета Республики Башкортостан ",null,null,null,null,null,null,null,null,null,null,null,null,null,null,null,null,null,null,null,null,null,null,null,null,null,null,"15/1"]
[null,null,null,"в использовании средств бюджета муниципального образования",null,null,null,null,null,null,null,null,null,null,null,null,null,null,null,null,null,null,null,null,null,null,null,null,null,null,"15/2",null,null,2]
[null,null,null,"в использовании средств, полученных от приносящей доход деятельности",null,null,null,null,null,null,null,null,null,null,null,null,null,null,null,null,null,null,null,null,null,null,null,null,null,null,"15/3"]
[null,null,null,"в использовании прочих средств",null,null,null,null,null,null,null,null,null,null,null,null,null,null,null,null,null,null,null,null,null,null,null,null,null,null,"15/4"]
[null,null,null,"Сумма финансовых нарушений, в том числе:",null,null,null,null,null,null,null,null,null,null,null,null,null,null,null,null,null,null,null,null,null,null,null,null,null,null,"16",null,null,{"$f":"AH34+AH39+AH44+AH49+AH54+AH57+AH62+AH67","v":587.70000000000005}]
[null,null,null,"в использовании средств бюджета Республики Башкортостан ",null,null,null,null,null,null,null,null,null,null,null,null,null,null,null,null,null,null,null,null,null,null,null,null,null,null,"16/1",null,null,{"$f":"AH35+AH40+AH45+AH50+AH58+AH63+AH68","v":0}]
[null,null,null,"в использовании средств бюджета муниципального образования",null,null,null,null,null,null,null,null,null,null,null,null,null,null,null,null,null,null,null,null,null,null,null,null,null,null,"16/2",null,null,{"$f":"AH36+AH41+AH46+AH51+AH55+AH56+AH59+AH64+AH69","v":587.70000000000005}]
[null,null,null,"в использовании средств, полученных от приносящей доход деятельности",null,null,null,null,null,null,null,null,null,null,null,null,null,null,null,null,null,null,null,null,null,null,null,null,null,null,"16/3",null,null,{"$f":"AH37+AH42+AH47+AH52++AH60+AH65+AH70","v":0}]
[null,null,null,"в использовании прочих средств",null,null,null,null,null,null,null,null,null,null,null,null,null,null,null,null,null,null,null,null,null,null,null,null,null,null,"16/4",null,null,{"$f":"AH38+AH43+AH48+AH53+AH61+AH66+AH71","v":0}]
[null,null,null,"Нецелевое использование средств, в том числе:",null,null,null,null,null,null,null,null,null,null,null,null,null,null,null,null,null,null,null,null,null,null,null,null,null,null,"17",null,null,{"$f":"SUM(AH35:AL38)","v":0}]
[null,null,null,"средств бюджета Республики Башкортостан ",null,null,null,null,null,null,null,null,null,null,null,null,null,null,null,null,null,null,null,null,null,null,null,null,null,null,"17/1"]
[null,null,null,"в использовании средств бюджета муниципального образования",null,null,null,null,null,null,null,null,null,null,null,null,null,null,null,null,null,null,null,null,null,null,null,null,null,null,"17/2"]
[null,null,null,"средств, полученных от приносящей доход деятельности",null,null,null,null,null,null,null,null,null,null,null,null,null,null,null,null,null,null,null,null,null,null,null,null,null,null,"17/3"]
[null,null,null,"в использовании прочих средств",null,null,null,null,null,null,null,null,null,null,null,null,null,null,null,null,null,null,null,null,null,null,null,null,null,null,"17/4"]
[null,null,null,"Неэффективное использование материальных ресурсов и денежных средств, в том числе:",null,null,null,null,null,null,null,null,null,null,null,null,null,null,null,null,null,null,null,null,null,null,null,null,null,null,"18",null,null,{"$f":"SUM(AH40:AL43)","v":167.1}]
[null,null,null,"средств бюджета Республики Башкортостан ",null,null,null,null,null,null,null,null,null,null,null,null,null,null,null,null,null,null,null,null,null,null,null,null,null,null,"18/1"]
[null,null,null,"в использовании средств бюджета муниципального образования",null,null,null,null,null,null,null,null,null,null,null,null,null,null,null,null,null,null,null,null,null,null,null,null,null,null,"18/2",null,null,167.1]
[null,null,null,"средств, полученных от приносящей доход деятельности",null,null,null,null,null,null,null,null,null,null,null,null,null,null,null,null,null,null,null,null,null,null,null,null,null,null,"18/3"]
[null,null,null,"в использовании прочих средств",null,null,null,null,null,null,null,null,null,null,null,null,null,null,null,null,null,null,null,null,null,null,null,null,null,null,"18/4"]
[null,null,null,"Недостача денежных средств, в том числе:",null,null,null,null,null,null,null,null,null,null,null,null,null,null,null,null,null,null,null,null,null,null,null,null,null,null,"19",null,null,{"$f":"SUM(AH45:AL48)","v":0}]
[null,null,null,"средств бюджета Республики Башкортостан ",null,null,null,null,null,null,null,null,null,null,null,null,null,null,null,null,null,null,null,null,null,null,null,null,null,null,"19/1"]
[null,null,null,"в использовании средств бюджета муниципального образования",null,null,null,null,null,null,null,null,null,null,null,null,null,null,null,null,null,null,null,null,null,null,null,null,null,null,"19/2"]
[null,null,null,"средств, полученных от приносящей доход деятельности",null,null,null,null,null,null,null,null,null,null,null,null,null,null,null,null,null,null,null,null,null,null,null,null,null,null,"19/3"]
[null,null,null,"прочих средств",null,null,null,null,null,null,null,null,null,null,null,null,null,null,null,null,null,null,null,null,null,null,null,null,null,null,"19/4"]
[null,null,null,"Недостача материальных ресурсов: в том числе",null,null,null,null,null,null,null,null,null,null,null,null,null,null,null,null,null,null,null,null,null,null,null,null,null,null,"20",null,null,{"$f":"SUM(AH50:AL53)","v":0}]
[null,null,null,"приобретенных за счет средств бюджета Республики Башкортостан ",null,null,null,null,null,null,null,null,null,null,null,null,null,null,null,null,null,null,null,null,null,null,null,null,null,null,"20/1"]
[null,null,null,"в использовании средств бюджета муниципального образования",null,null,null,null,null,null,null,null,null,null,null,null,null,null,null,null,null,null,null,null,null,null,null,null,null,null,"20/2"]
[null,null,null,"средств, полученных от приносящей доход деятельности",null,null,null,null,null,null,null,null,null,null,null,null,null,null,null,null,null,null,null,null,null,null,null,null,null,null,"20/3"]
[null,null,null,"приобретенных за счет прочих средств",null,null,null,null,null,null,null,null,null,null,null,null,null,null,null,null,null,null,null,null,null,null,null,null,null,null,"20/4"]
[null,null,null,"Недопоступление платежей в бюджет, в том числе:",null,null,null,null,null,null,null,null,null,null,null,null,null,null,null,null,null,null,null,null,null,null,null,null,null,null,"21",null,null,{"$f":"SUM(AH55:AL56)","v":0}]
[null,null,null,"Налоговые платежи:",null,null,null,null,null,null,null,null,null,null,null,null,null,null,null,null,null,null,null,null,null,null,null,null,null,null,"21/1"]
[null,null,null,"Неналоговые платежи:",null,null,null,null,null,null,null,null,null,null,null,null,null,null,null,null,null,null,null,null,null,null,null,null,null,null,"21/2"]
[null,null,null,"Излишки материальных ценностей и денежных средств (из строки 16), в том числе:",null,null,null,null,null,null,null,null,null,null,null,null,null,null,null,null,null,null,null,null,null,null,null,null,null,null,"22",null,null,{"$f":"SUM(AH58:AL61)","v":38}]
[null,null,null,"средств бюджета Республики Башкортостан ",null,null,null,null,null,null,null,null,null,null,null,null,null,null,null,null,null,null,null,null,null,null,null,null,null,null,"22/1"]
[null,null,null,"в использовании средств бюджета муниципального образования",null,null,null,null,null,null,null,null,null,null,null,null,null,null,null,null,null,null,null,null,null,null,null,null,null,null,"22/2",null,null,38]
[null,null,null,"средств, полученных от приносящей доход деятельности",null,null,null,null,null,null,null,null,null,null,null,null,null,null,null,null,null,null,null,null,null,null,null,null,null,null,"22/3"]
[null,null,null,"прочих средств",null,null,null,null,null,null,null,null,null,null,null,null,null,null,null,null,null,null,null,null,null,null,null,null,null,null,"22/4"]
[null,null,null,"Неправомерное расходование денежных средств и материальных ресурсов (из строки 16), в том числе:",null,null,null,null,null,null,null,null,null,null,null,null,null,null,null,null,null,null,null,null,null,null,null,null,null,null,"23",null,null,{"$f":"SUM(AH63:AL66)","v":0}]
[null,null,null,"средств бюджета Республики Башкортостан ",null,null,null,null,null,null,null,null,null,null,null,null,null,null,null,null,null,null,null,null,null,null,null,null,null,null,"23/1"]
[null,null,null,"в использовании средств бюджета муниципального образования",null,null,null,null,null,null,null,null,null,null,null,null,null,null,null,null,null,null,null,null,null,null,null,null,null,null,"23/2"]
[null,null,null,"в использовании средств, полученных от приносящей доход деятельности",null,null,null,null,null,null,null,null,null,null,null,null,null,null,null,null,null,null,null,null,null,null,null,null,null,null,"23/3"]
[null,null,null,"прочих средств",null,null,null,null,null,null,null,null,null,null,null,null,null,null,null,null,null,null,null,null,null,null,null,null,null,null,"23/4"]
[null,null,null,"Другие финансовые нарушения (из строки 16), в том числе:",null,null,null,null,null,null,null,null,null,null,null,null,null,null,null,null,null,null,null,null,null,null,null,null,null,null,"24",null,null,{"$f":"SUM(AH68:AL71)","v":382.6}]
[null,null,null,"средств бюджета Республики Башкортостан ",null,null,null,null,null,null,null,null,null,null,null,null,null,null,null,null,null,null,null,null,null,null,null,null,null,null,"24/1"]
[null,null,null,"в использовании средств бюджета муниципального образования",null,null,null,null,null,null,null,null,null,null,null,null,null,null,null,null,null,null,null,null,null,null,null,null,null,null,"24/2",null,null,382.6]
[null,null,null,"средств, полученных от приносящей доход деятельности",null,null,null,null,null,null,null,null,null,null,null,null,null,null,null,null,null,null,null,null,null,null,null,null,null,null,"24/3"]
[null,null,null,"прочих средств",null,null,null,null,null,null,null,null,null,null,null,null,null,null,null,null,null,null,null,null,null,null,null,null,null,null,"24/4"]
["III",null,null,"Сведения о мерах, принятых по реализации материалов контрольных мероприятий (представления, предписания, уведомления о применении бюджетных мер принуждения)",null,null,null,null,null,null,null,null,null,null,null,null,null,null,null,null,null,null,null,null,null,null,null,null,null,null,"Х",null,null,"Х"]
[null,null,null,"Направлено представлений, предписаний (единиц)",null,null,null,null,null,null,null,null,null,null,null,null,null,null,null,null,null,null,null,null,null,null,null,null,null,null,"25",null,null,2]
[null,null,null,"на сумму",null,null,null,null,null,null,null,null,null,null,null,null,null,null,null,null,null,null,null,null,null,null,null,null,null,null,"25/1",null,null,588]
[null,null,null,"Рассмотрено представлений, прдеписаний (единиц)",null,null,null,null,null,null,null,null,null,null,null,null,null,null,null,null,null,null,null,null,null,null,null,null,null,null,"26"]
[null,null,null,"на сумму",null,null,null,null,null,null,null,null,null,null,null,null,null,null,null,null,null,null,null,null,null,null,null,null,null,null,"26/1",null,null,588]
[null,null,null,"Направлены уведомления о применении бюджетных мер принуждения, (единиц)",null,null,null,null,null,null,null,null,null,null,null,null,null,null,null,null,null,null,null,null,null,null,null,null,null,null,"27"]
[null,null,null,"на сумму",null,null,null,null,null,null,null,null,null,null,null,null,null,null,null,null,null,null,null,null,null,null,null,null,null,null,"27/1",null,null,0]
[null,null,null,"Исполнены уведомления о применении бюджетных мер принуждения, (единиц)",null,null,null,null,null,null,null,null,null,null,null,null,null,null,null,null,null,null,null,null,null,null,null,null,null,null,"28",null,null,0]
[null,null,null,"на сумму",null,null,null,null,null,null,null,null,null,null,null,null,null,null,null,null,null,null,null,null,null,null,null,null,null,null,"28/1"]
[null,null,null,"Возмещено средств, использованных с нарушениями, по предписаниям и представлениям Министерства в досудебном порядке, а также в добровольном порядке, (единиц)",null,null,null,null,null,null,null,null,null,null,null,null,null,null,null,null,null,null,null,null,null,null,null,null,null,null,"29"]
[null,null,null,"на сумму",null,null,null,null,null,null,null,null,null,null,null,null,null,null,null,null,null,null,null,null,null,null,null,null,null,null,"29/1",null,null,0]
[null,null,null,"Передано органам прокуратуры и правоохранительным органам материалов ревизий (проверок), (единиц)",null,null,null,null,null,null,null,null,null,null,null,null,null,null,null,null,null,null,null,null,null,null,null,null,null,null,"30",null,null,0]
[null,null,null,"на сумму",null,null,null,null,null,null,null,null,null,null,null,null,null,null,null,null,null,null,null,null,null,null,null,null,null,null,"30/1"]
[null,null,null,"Принято постановлений, решений или приказов объектами контроля, (единиц)",null,null,null,null,null,null,null,null,null,null,null,null,null,null,null,null,null,null,null,null,null,null,null,null,null,null,"31",null,null,2]
[null,null,null,"Число лиц, привлеченных к дисциплинарной ответственности – всего (чел.), в том числе:",null,null,null,null,null,null,null,null,null,null,null,null,null,null,null,null,null,null,null,null,null,null,null,null,null,null,"32",null,null,{"$f":"AH87+AH88","v":0}]
[null,null,null,"освобождено от занимаемой должности (чел.)",null,null,null,null,null,null,null,null,null,null,null,null,null,null,null,null,null,null,null,null,null,null,null,null,null,null,"32/1"]
[null,null,null,"объявлены выговоры, замечания, предупреждения (чел.)",null,null,null,null,null,null,null,null,null,null,null,null,null,null,null,null,null,null,null,null,null,null,null,null,null,null,"32/2"]
[null,null,null,"Число лиц, привлеченных к материальной ответственности, (чел.)",null,null,null,null,null,null,null,null,null,null,null,null,null,null,null,null,null,null,null,null,null,null,null,null,null,null,"33"]
["IV",null,null,"Возмещено средств, использованных с нарушением законодательства, дополнительно поступило платежей и предотвращено потерь по результатам проведенных ревизий и проверок",null,null,null,null,null,null,null,null,null,null,null,null,null,null,null,null,null,null,null,null,null,null,null,null,null,null,"Х",null,null,"Х"]
[null,null,null,"Сумма возмещенных финансовых нарушений, в том числе:",null,null,null,null,null,null,null,null,null,null,null,null,null,null,null,null,null,null,null,null,null,null,null,null,null,null,34,null,null,{"$f":"SUM(AH92:AL95)","v":38}]
[null,null,null,"средств бюджета Республики Башкортостан ",null,null,null,null,null,null,null,null,null,null,null,null,null,null,null,null,null,null,null,null,null,null,null,null,null,null,"34/1",null,null,{"$f":"AH97+AH120","v":0}]
[null,null,null,"средств бюджета муниципального образования",null,null,null,null,null,null,null,null,null,null,null,null,null,null,null,null,null,null,null,null,null,null,null,null,null,null,"34/2",null,null,{"$f":"AH102+AH116+AH121+AH115","v":38}]
[null,null,null,"средств, полученных от приносящей доход деятельности",null,null,null,null,null,null,null,null,null,null,null,null,null,null,null,null,null,null,null,null,null,null,null,null,null,null,"34/3",null,null,{"$f":"AH107+AH122","v":0}]
[null,null,null,"прочих средств",null,null,null,null,null,null,null,null,null,null,null,null,null,null,null,null,null,null,null,null,null,null,null,null,null,null,"34/4",null,null,{"$f":"AH111+AH123","v":0}]
[null,null,null,"Восстановлено в добровольном порядке, в том числе:",null,null,null,null,null,null,null,null,null,null,null,null,null,null,null,null,null,null,null,null,null,null,null,null,null,null,"35",null,null,{"$f":"AH97+AH102+AH107+AH111+AH115+AH116+AH119","v":38}]
[null,null,null,"средств бюджета Республики Башкортостан",null,null,null,null,null,null,null,null,null,null,null,null,null,null,null,null,null,null,null,null,null,null,null,null,null,null,"35/1",null,null,{"$f":"SUM(AH98:AL101)","v":0}]
[null,null,null,"в доход бюджета Республики Башкортостан",null,null,null,null,null,null,null,null,null,null,null,null,null,null,null,null,null,null,null,null,null,null,null,null,null,null,"35/1/1"]
[null,null,null,"на счета и в кассу учреждения",null,null,null,null,null,null,null,null,null,null,null,null,null,null,null,null,null,null,null,null,null,null,null,null,null,null,"35/1/2"]
[null,null,null,"в регистрах бухгалтерского учета учреждения",null,null,null,null,null,null,null,null,null,null,null,null,null,null,null,null,null,null,null,null,null,null,null,null,null,null,"35/1/3"]
[null,null,null,"оприходованы излишки и неучтенные ценности, денежные средства",null,null,null,null,null,null,null,null,null,null,null,null,null,null,null,null,null,null,null,null,null,null,null,null,null,null,"35/1/4"]
[null,null,null,"средств бюджета муниципального образования",null,null,null,null,null,null,null,null,null,null,null,null,null,null,null,null,null,null,null,null,null,null,null,null,null,null,"35/1",null,null,{"$f":"SUM(AH103:AL106)","v":38}]
[null,null,null,"в доход бюджета муниципального района",null,null,null,null,null,null,null,null,null,null,null,null,null,null,null,null,null,null,null,null,null,null,null,null,null,null,"35/2/1"]
[null,null,null,"на счета и в кассу учреждения",null,null,null,null,null,null,null,null,null,null,null,null,null,null,null,null,null,null,null,null,null,null,null,null,null,null,"35/2/2"]
[null,null,null,"в регистрах бухгалтерского учета учреждения",null,null,null,null,null,null,null,null,null,null,null,null,null,null,null,null,null,null,null,null,null,null,null,null,null,null,"35/2/3"]
[null,null,null,"оприходованы излишки и неучтенные ценности, денежные средства",null,null,null,null,null,null,null,null,null,null,null,null,null,null,null,null,null,null,null,null,null,null,null,null,null,null,"35/2/4",null,null,38]
[null,null,null,"средств, полученных от приносящей доход деятельности",null,null,null,null,null,null,null,null,null,null,null,null,null,null,null,null,null,null,null,null,null,null,null,null,null,null,"35/3",null,null,{"$f":"SUM(AH108:AL110)","v":0}]
[null,null,null,"на лицевые счета и кассу учреждения",null,null,null,null,null,null,null,null,null,null,null,null,null,null,null,null,null,null,null,null,null,null,null,null,null,null,"35/3/2"]
[null,null,null,"в регистрах бухгалтерского учета учреждения",null,null,null,null,null,null,null,null,null,null,null,null,null,null,null,null,null,null,null,null,null,null,null,null,null,null,"35/3/3"]
[null,null,null,"оприходованы излишки и неучтенные ценности, денежные средства",null,null,null,null,null,null,null,null,null,null,null,null,null,null,null,null,null,null,null,null,null,null,null,null,null,null,"35/3/4"]
[null,null,null,"прочих средств",null,null,null,null,null,null,null,null,null,null,null,null,null,null,null,null,null,null,null,null,null,null,null,null,null,null,"35/4",null,null,{"$f":"SUM(AH112:AL114)","v":0}]
[null,null,null,"на банковские счета и кассу учреждения",null,null,null,null,null,null,null,null,null,null,null,null,null,null,null,null,null,null,null,null,null,null,null,null,null,null,"35/4/2"]
[null,null,null,"в регистрах бухгалтерского учета учреждения",null,null,null,null,null,null,null,null,null,null,null,null,null,null,null,null,null,null,null,null,null,null,null,null,null,null,"35/4/3"]
[null,null,null,"оприходованы излишки и неучтенные ценности, денежные средства",null,null,null,null,null,null,null,null,null,null,null,null,null,null,null,null,null,null,null,null,null,null,null,null,null,null,"35/4/4"]
[null,null,null,"Вынесено уведомлений об изменении лимитов бюджетных обязательств ",null,null,null,null,null,null,null,null,null,null,null,null,null,null,null,null,null,null,null,null,null,null,null,null,null,null,"36"]
[null,null,null,"Дополнительно поступило платежей в бюджет МО, в том числе:",null,null,null,null,null,null,null,null,null,null,null,null,null,null,null,null,null,null,null,null,null,null,null,null,null,null,"37",null,null,{"$f":"SUM(AH117:AL118)","v":0}]
[null,null,null,"Налоговые платежи",null,null,null,null,null,null,null,null,null,null,null,null,null,null,null,null,null,null,null,null,null,null,null,null,null,null,"37/1"]
[null,null,null,"Неналоговые платежи",null,null,null,null,null,null,null,null,null,null,null,null,null,null,null,null,null,null,null,null,null,null,null,null,null,null,"37/2"]
["V",null,null,"Предотвращены потери, в том числе:",null,null,null,null,null,null,null,null,null,null,null,null,null,null,null,null,null,null,null,null,null,null,null,null,null,null,"38",null,null,{"$f":"SUM(AH120:AL123)","v":0}]
[null,null,null,"средств бюджета Республики Башкортостан",null,null,null,null,null,null,null,null,null,null,null,null,null,null,null,null,null,null,null,null,null,null,null,null,null,null,"38/1"]
[null,null,null,"средств бюджета муниципального образования",null,null,null,null,null,null,null,null,null,null,null,null,null,null,null,null,null,null,null,null,null,null,null,null,null,null,"38/2"]
[null,null,null,"средств, полученных от приносящей доход деятельности",null,null,null,null,null,null,null,null,null,null,null,null,null,null,null,null,null,null,null,null,null,null,null,null,null,null,"38/3"]
[null,null,null,"прочих средств",null,null,null,null,null,null,null,null,null,null,null,null,null,null,null,null,null,null,null,null,null,null,null,null,null,null,"38/4"]

{"sheet":"4. Объекты КМ","index":3,"n_rows":405,"n_cols":10,"rows_kept":405,"cut":false,"hidden":false,"merged":[[0,0,0,9],[1,0,1,9],[2,0,2,9]]}
["Сведения об объектах контроля"]
[{"$f":"CONCATENATE(\"по состоянию на \",'1. Начальные данные'!D18,\" \",'1. Начальные данные'!F18)","v":"по состоянию на 1 июля 2021 года"}]
[{"$f":"'1. Начальные данные'!D17","v":"МР Нуримановский район РБ"}]
[]
["№","Объект контроля"," Тема КМ","Проверяемый период (дд.мм.год-дд.мм.год)","Сроки \nпроведения КМ \n(дд.мм.год-дд.мм.год)","Сумма проверенных средств","в т.ч. проверено средств бюджета РБ","Главный распорядитель бюджетных средств","Сумма выявленных финансовых нарушений","в т.ч. нарушено при использовании средств бюджета РБ"]
[1,"Администрация сельского поселения Новосубаевский сельсовет муниципального района Нуримановский район Республики башкортостан","ревизии исполнения бюджета сельского поселения","01.01.2018-31.03.2021","25.03.2021-23.04.2021 ",9138.7000000000007,null,"Администрация сельского поселения Новосубаевский сельсовет муниципального района Нуримановский район Республики башкортостан",507.8]
[2,"Муниципальное бюджетное учреждение «Нуримановский информационно-консультационный центр»","внеплановая проверка\nнормативных правовых актов по оплате труда \n","01.01.2021-31.03.2021","02.04.2021-05.04.2021",432,null,"Администрация муниципального района ",80]
[3,null,null,null,null,null,null,null,{"$f":"SUM(I6:I7)","v":587.79999999999995}]
[4]
[5]
[6]
[7]
[8]
[9]
[10]
[11]
[12]
[13]
[14]
[15]
[16]
[17]
[18]
[19]
[20]
[21]
[22]
[23]
[24]
[25]
[26]
[27]
[28]
[29]
[30]
[31]
[32]
[33]
[34]
[35]
[36]
[37]
[38]
[39]
[40]
[41]
[42]
[43]
[44]
[45]
[46]
[47]
[48]
[49]
[50]
[51]
[52]
[53]
[54]
[55]
[56]
[57]
[58]
[59]
[60]
[61]
[62]
[63]
[64]
[65]
[66]
[67]
[68]
[69]
[70]
[71]
[72]
[73]
[74]
[75]
[76]
[77]
[78]
[79]
[80]
[81]
[82]
[83]
[84]
[85]
[86]
[87]
[88]
[89]
[90]
[91]
[92]
[93]
[94]
[95]
[96]
[97]
[98]
[99]
[100]
[101]
[102]
[103]
[104]
[105]
[106]
[107]
[108]
[109]
[110]
[111]
[112]
[113]
[114]
[115]
[116]
[117]
[118]
[119]
[120]
[121]
[122]
[123]
[124]
[125]
[126]
[127]
[128]
[129]
[130]
[131]
[132]
[133]
[134]
[135]
[136]
[137]
[138]
[139]
[140]
[141]
[142]
[143]
[144]
[145]
[146]
[147]
[148]
[149]
[150]
[151]
[152]
[153]
[154]
[155]
[156]
[157]
[158]
[159]
[160]
[161]
[162]
[163]
[164]
[165]
[166]
[167]
[168]
[169]
[170]
[171]
[172]
[173]
[174]
[175]
[176]
[177]
[178]
[179]
[180]
[181]
[182]
[183]
[184]
[185]
[186]
[187]
[188]
[189]
[190]
[191]
[192]
[193]
[194]
[195]
[196]
[197]
[198]
[199]
[200]
[201]
[202]
[203]
[204]
[205]
[206]
[207]
[208]
[209]
[210]
[211]
[212]
[213]
[214]
[215]
[216]
[217]
[218]
[219]
[220]
[221]
[222]
[223]
[224]
[225]
[226]
[227]
[228]
[229]
[230]
[231]
[232]
[233]
[234]
[235]
[236]
[237]
[238]
[239]
[240]
[241]
[242]
[243]
[244]
[245]
[246]
[247]
[248]
[249]
[250]
[251]
[252]
[253]
[254]
[255]
[256]
[257]
[258]
[259]
[260]
[261]
[262]
[263]
[264]
[265]
[266]
[267]
[268]
[269]
[270]
[271]
[272]
[273]
[274]
[275]
[276]
[277]
[278]
[279]
[280]
[281]
[282]
[283]
[284]
[285]
[286]
[287]
[288]
[289]
[290]
[291]
[292]
[293]
[294]
[295]
[296]
[297]
[298]
[299]
[300]
[301]
[302]
[303]
[304]
[305]
[306]
[307]
[308]
[309]
[310]
[311]
[312]
[313]
[314]
[315]
[316]
[317]
[318]
[319]
[320]
[321]
[322]
[323]
[324]
[325]
[326]
[327]
[328]
[329]
[330]
[331]
[332]
[333]
[334]
[335]
[336]
[337]
[338]
[339]
[340]
[341]
[342]
[343]
[344]
[345]
[346]
[347]
[348]
[349]
[350]
[351]
[352]
[353]
[354]
[355]
[356]
[357]
[358]
[359]
[360]
[361]
[362]
[363]
[364]
[365]
[366]
[367]
[368]
[369]
[370]
[371]
[372]
[373]
[374]
[375]
[376]
[377]
[378]
[379]
[380]
[381]
[382]
[383]
[384]
[385]
[386]
[387]
[388]
[389]
[390]
[391]
[392]
[393]
[394]
[395]
[396]
[397]
[398]
[399]
[400]

{"sheet":"5. Оценка кач-ва","index":4,"n_rows":100,"n_cols":6,"rows_kept":100,"cut":false,"hidden":false,"merged":[[80,0,80,1],[77,3,79,4],[80,3,80,4],[77,2,79,2],[0,0,0,4],[4,0,4,4],[13,0,13,4],[57,0,57,4],[66,0,66,4],[77,0,79,1],[1,0,1,4]]}
["Сведения о контрольной деятельности органа внутреннего муниципального финансового контроля"]
[{"$f":"'1. Начальные данные'!D17","v":"МР Нуримановский район РБ"}]
[]
["№ п/п","Показатели","Единица измерения","Значение показателя","Примечание"]
["1.       Общие сведения об количестве объектов контроля муниципального образования"]
["1.1","Количество главных администраторов бюджетных средств (главные распорядители и администраторы доходов и источников)","ед.",15]
["1.2","Количество получателей бюджетных средств (казенные и органы местного самоуправления)","ед.",15]
["1.2.2","в том числе органы местного самоуправления","ед.",15]
["1.3","Количество бюджетных учреждений","ед.",14]
["1.4","Количество автономных учреждений","ед.",3]
["1.5","Количество муниципальных унитарных предприятий","ед.",2]
["1.6","Количество хозяйственных товариществ и обществ с участием муниципального образования в их уставных капиталах","ед.",0]
["1.7","Количество юридических лиц, определенных ст.266.1 БК РФ, индивидуальных предпринимателей и физических лиц","ед.",0]
["2.       Информация об органе внутреннего муниципального финансового контроля (ст. 269.2 БК РФ)"]
["2.1","Полномочия по осуществлению ВМФК возложены на финансовый орган администрации муниципального образования","да/нет","да",null,{"$f":"IF(AND(D15=\"Да\",D19=\"Да\"),\"Проверьте на какой орган возложены полномочия\",\"\")","v":""}]
["2.1.1","Штатная численность финансового органа (всего)","ед.",13]
["2.1.1.1","Штатная численность должностных лиц (подразделения) финансового органа, осуществляющих ВМФК ","ед.",1,null,{"$f":"IF(D17>D16,\"Проверьте соотношение с вышестоящей ячейкой\",\"\")","v":""}]
["2.1.1.2","Фактическая численность должностных лиц (подразделения) финансового органа, осуществляющих ВМФК","ед.",3,null,{"$f":"IF(D18>D17,\"Проверьте соотношение с вышестоящей ячейкой\",\"\")","v":"Проверьте соотношение с вышестоящей ячейкой"}]
["2.2","Полномочия по осуществлению ВМФК возложены на иных должностных лиц (подразделение) администрации муниципального образования","да/нет","нет"]
["2.2.1","Штатная численность администрации муниципального образования","ед."]
["2.2.1.1","Штатная численность должностных лиц (подразделения) администрации, осуществляющих ВМФК ","ед.",null,null,{"$f":"IF(D21>D20,\"Проверьте соотношение с вышестоящей ячейкой\",\"\")","v":""}]
["2.2.1.2","Фактическая численность должностных лиц (подразделения) администрации, осуществляющих ВМФК","ед.",null,null,{"$f":"IF(D22>D21,\"Проверьте соотношение с вышестоящей ячейкой\",\"\")","v":""}]
["2.3","Количество должностных лиц, осуществляющих ВМФК, обладающих дипломами высшего профобразования в области финансов, бухгалтерского учета, анализа и аудита, по экономическим специальностям","ед.",1,null,{"$f":"IF((D18+D22)>=(SUM(D24:D26)),\"\",\"Количество должностных имеющих дипломы, свидетельства превышает число фактическую численность\")","v":""}]
["2.4","Количество должностных лиц, осуществляющих ВМФК, обладающих дипломами среднего профобразования в области финансов, бухгалтерского учета, анализа и аудита, по экономическим специальностям","ед."]
["2.5","Количество должностных лиц, осуществляющих ВМФК, обладающих свидетельствами (сертификатами) о прохождении повышения квалификации по направлению деятельности в течение последних трех лет","ед."]
["2.6","Количество должностных лиц, осуществляющих ВМФК, имеющих отдельный рабочий стол","ед.",1]
["2.7","Количество должностных лиц, осуществляющих ВМФК имеющих закрепленную компьютерную технику","ед.",1]
["2.8","Количество должностных лиц, осуществляющих ВМФК имеющие на рабочем месте доступ к справочно-правовым системам (Консультант, Гарант и др.)","ед.",1]
["2.9","Количество должностных лиц, осуществляющих ВМФК имеющих на рабочем месте доступ к интернету","ед.",1]
["2.10","Количество должностных лиц, осуществляющих ВМФК, выполняющие другие функции кроме контрольной","ед.",1,"осуществление контроля ч.3 чт. 99 ФХ №44-ФЗ"]
["2.11","Количество обоснованных жалоб по контрольной деятельности на должностных лиц, осуществляющих ВМФК","ед.",0]
["2.12","Наличие плана контрольных мероприятий на отчетный период","да\\нет","да"]
["2.13","Количество запланированных контрольных мероприятий на отчетную дату","ед.",2]
["2.13.1","Количество проведенных (завершенных) плановых контрольных мероприятий за отчетный период в соответствии","ед.",{"$f":"'3. ФК-1'!AH10","v":1}]
["2.13.2","Количество проведенных (завершенных) внеплановых контрольных мероприятий за отчетный период","ед.",{"$f":"'3. ФК-1'!AH11","v":1}]
["2.14","Общее количество объектов контроля в отчетном периоде","ед.",2]
["2.14.1","Количество проверенных объектов контроля в отчетном периоде","ед.",{"$f":"'3. ФК-1'!AH16","v":0}]
["2.15","Количество контрольных мероприятий проведенных в отчетном периоде, по которым выявлены финансовые и нефинансовые нарушения","ед.",{"$f":"'3. ФК-1'!AH24","v":0}]
["2.16","Количество контрольных мероприятий, по которым объекту контроля направлены представления, предписания, заключения, уведомления, письма, служебные записки","ед.",2]
["2.17","Количество контрольных мероприятий, по которым приняты меры по предъявленным представлениям, предписаниям, заключениям, уведомлениям, письмам, служебным запискам","ед.",2]
["2.18","Объемы денежных средств, которые были проверены в отчетном периоде","тыс. руб",{"$f":"SUM('2. Пров.суммы'!B11:E11)","v":9570.8000000000011}]
["2.19","Выявлено финансовых нарушений на сумму","тыс. руб",{"$f":"'3. ФК-1'!AH29","v":587.70000000000005}]
["2.19.1","Объем денежных средств, подлежащих взысканию","тыс. руб"]
["2.19.2","Взыскано (восстановлено) средств ","тыс. руб"]
["2.20","Количество признанных судами незаконными предписаний и представлений","ед."]
["2.21","Количество составленных протоколов об административном правонарушении в отчетном периоде","ед."]
["2.21.1","Количество вынесенных постановлений о назначении административного штрафа по указанным протоколам","ед."]
["2.21.2","Сумма вынесенных постановлений о назначении административного штрафа по указанным протоколам","тыс. руб"]
["2.21.2.1","Сумма административных штрафов, взысканная в бюджет","тыс. руб"]
["2.22","Количество отмененных судами постановлений о привлечении к административной ответственности правонарушителей по причинам отсутствия события (состава) правонарушения, пропуска срока давности привлечения к ответственности, а также вследствие допущенных процессуальных нарушений","ед."]
["2.23","Количество направленных в финансовый орган уведомлений о применении мер принуждения","ед."]
["2.23.1","Количество возвращенных уведомлений о применении мер принуждения по причине неправильной квалификации фактов нарушений и нарушения срока направления уведомлений, установленного БК РФ","ед."]
["2.24","Количество материалов, переданных в правоохранительные органы","ед."]
["2.25","Количество проверок, проведенных совместно с правоохранительными органами","ед."]
["2.26","Количество проверок, проведенных совместно с органами внешнего МФК","ед."]
["2.27","Количество соглашений, подписанных с другими ведомствами (в том числе с правоохранительными органами и поселениями) по вопросам контрольной деятельности","ед."]
["2.27.1","из них, количество соглашений, подписанных с поселениями, входящими в состав муниципального района, по вопросам контрольной деятельности","ед."]
["3.       Муниципальные правовые акты регулирующие деятельность органа внутреннего муниципального финансового контроля"]
["3.1","Документ (постановление), подтверждающий возложение полномочий по осуществлению ВМФК на орган ВМФК (ст.265, 269.2 БК РФ)","да\\нет"]
["3.2","Документ (Положение), подтверждающий закрепление функции (обязанности) по осуществлению бюджетных полномочий по осуществлению ВМФК за органом ВМФК (ст.6, 152 БК РФ) ","да\\нет"]
["3.3","Документ (постановление), регламентирующий деятельность по осуществлению ВМФК (ст.269.2 БК РФ)","да\\нет"]
["3.4","Документ (распоряжение, приказ), необходимый для реализации полномочия по осуществлению ВМФК (п.3 ППРБ от 20.02.2014 № 66, требования МПА)","да\\нет"]
["3.5","Документ (документы), определяющий (ие) стандарты осуществления ВМФК (п.3 ст.269.2 БК РФ)","да\\нет"]
["3.6","Документ, регламентирующий осуществление контроля за полнотой и достоверностью отчетности о реализации муниципальных программ, об исполнении муниципальных заданий (п.1 ст.269.2 БК РФ)","да\\нет"]
["3.7","Документ (постановление), определяющий порядок осуществления ВФК и ВФА главными администраторами средств местного бюджета (п.5 ст.160.2-1 БК РФ)","да\\нет"]
["3.8","Документ (распоряжение, приказ), определяющий порядок проведения анализа осуществления главными администраторами средств местного бюджета ВФК и ВФА (п.4 ст.157 БК РФ)","да\\нет"]
["4.       Открытость и доступность информации о результатах контрольных мероприятий, проведение мероприятий по предупреждению нарушений бюджетного законодательства"]
["4.1","Размещение информации на официальном сайте органа ВМФК","х","х"]
["4.1.1","Информации о реквизитах контрольного органа","да\\нет","да","nuriman-fu.ru"]
["4.1.2","Сведений о руководстве органа ВМФК","да\\нет","да","http://nuriman-fu.ru/fu/structure/"]
["4.1.3","Опубликованных отчетов о результатах контроля","да\\нет","да","http://nuriman-fu.ru/control/financial/reports/"]
["4.1.4","МПА, регламентирующих контрольную деятельность","да\\нет","Да","в соотвествии с федеральными стандартами"]
["4.1.5","Информации о типовых нарушениях и иных разъяснений по вопросам контроля","да\\нет","да","http://nuriman-fu.ru/control/financial/violations/"]
["4.2","Проведение органами ВМФК мониторинга выявленных нарушений бюджетного законодательства в отчетном периоде","да\\нет","да"]
["4.3","Проведение информационной работы по предупреждению нарушений бюджетного законодательства (письма, совещания, аналитические записки и др.)","да\\нет","да"]
["4.4","Оказание методической помощи по вопросам контрольной деятельности органам ВМФК поселений, входящих в муниципальный район, главным распорядителям и администраторам средств бюджета МО","да\\нет","да"]
[]
[]
[]
[]
["Заместитель главы администрации- начальник фмнансового управления",null,null,"Ардаширова А.Г."]
[]
[]
[]
[]
[]
[]
[]
[]
[]
[]
[]
[]
[]
[]
[]
[]
[]
[]
[null,null,null,{"$f":"'Показатели качества'!G126","v":{"$error":"#N/A"}}]

{"sheet":"Показатели качества","index":5,"n_rows":126,"n_cols":8,"rows_kept":126,"cut":false,"hidden":false,"merged":[[125,0,125,5],[1,0,1,5],[3,0,3,5],[20,0,20,5],[48,0,48,5],[107,0,107,5]]}
[]
["Показатели качества деятельности органов муниципального финансового контроля Республики Башкортостан"]
["№ п/п","Показатель","Расчет показателя","Единица измерения","Баллы","Примечание","Баллы"]
["1. Качество нормативно-правового обеспечения осуществления внутреннего муниципального финансового контроля"]
["1.1","Документ (постановление), подтверждающий возложение полномочий по осуществлению ВМФК на орган ВМФК (ст. 269.2 БК РФ)","Наличие МПА","баллы",5,"показатель применяется для оценки правового обеспечения деятельности органа ВМФК",{"$f":"IF(OR('5. Оценка кач-ва'!D59=\"Да\",'5. Оценка кач-ва'!D60=\"Да\"),5,0)","v":0}]
[null,null,"Отсутствие МПА","баллы",0]
["1.2","Документ (Положение), подтверждающий закрепление функции (обязанности) по осуществлению бюджетных полномочий по осуществлению ВМФК за органом ВМФК (ст.6, 152 БК РФ) ","Наличие МПА","баллы",5,"показатель применяется для оценки правового обеспечения деятельности органа ВМФК",{"$f":"IF(OR('5. Оценка кач-ва'!D59=\"Да\",'5. Оценка кач-ва'!D60=\"Да\"),5,0)","v":0}]
[null," ","Отсутствие МПА","баллы",0]
["1.3","Документ (постановление), регламентирующий деятельность по осуществлению ВМФК (п.3 ст. 269.2 БК РФ)","Наличие МПА","баллы",5,"показатель применяется для оценки правового обеспечения деятельности органа ВМФК",{"$f":"IF(OR('5. Оценка кач-ва'!D61=\"Да\",'5. Оценка кач-ва'!D62=\"Да\"),5,0)","v":0}]
[null,null,"Отсутствие МПА","баллы",0]
["1.4","Документ (распоряжение, приказ), необходимый для реализации полномочия по осуществлению ВМФК (п.3 ППРБ от 20.02.2014 № 66, требования МПА)","Наличие МПА","баллы",5,"показатель применяется для оценки правового обеспечения деятельности органа ВМФК",{"$f":"IF(OR('5. Оценка кач-ва'!D61=\"Да\",'5. Оценка кач-ва'!D62=\"Да\"),5,0)","v":0}]
[null,null,"Отсутствие МПА","баллы",0]
["1.5","Документ, регламентирующий осуществление контроля за полнотой и достоверностью отчетности о реализации муниципальных программ, об исполнении муниципальных заданий (п.1 ст.269.2 БК РФ)","Наличие МПА","баллы",5,"показатель применяется для оценки правового обеспечения деятельности органа ВМФК",{"$f":"IF('5. Оценка кач-ва'!D64=\"Да\",5,0)","v":0}]
[null,null,"Отсутствие МПА","баллы",0]
["1.6","Документ (документы), определяющий (ие) стандарты осуществления ВМФК (п.3 ст.269.2 БК РФ)","Наличие МПА","баллы",5,"показатель применяется для оценки правового обеспечения деятельности органа ВМФК",{"$f":"IF('5. Оценка кач-ва'!D63=\"Да\",5,0)","v":0}]
[null,null,"Отсутствие МПА","баллы",0]
["1.7","Документ (постановление), определяющий порядок осуществления ВФК и ВФА главными администраторами средств местного бюджета (п.5 ст.160.2-1 БК РФ)\nПУНКТ ИСКЛЮЧЕН","Наличие МПА","баллы",0,"показатель применяется для оценки правового обеспечения деятельности органа ВМФК",{"$f":"IF('5. Оценка кач-ва'!D65=\"Да\",5,0)","v":0}]
[null,null,"Отсутствие МПА","баллы",0]
["1.8","Документ (распоряжение, приказ), определяющий порядок проведения анализа осуществления главными администраторами средств местного бюджета ВФК и ВФА (п.4 ст.157 БК РФ)\nПУНКТ ИСКЛЮЧЕН","Наличие МПА","баллы",0,"показатель применяется для оценки правового обеспечения деятельности органа ВМФК",{"$f":"IF('5. Оценка кач-ва'!D66=\"Да\",5,0)","v":0}]
[null,null,"Отсутствие МПА","баллы",0]
["2. Квалификация и уровень профессиональной подготовки должностных лиц органа внутреннего муниципального финансового контроля"]
["2.1","Образование по экономическим специальностям в области финансов и бухгалтерского учета","P = 100*(BCp)/Ч, \nВСр – количество должностных лиц, осуществляющих ВМФК, обладающих дипломами высшего и среднего профобразования в области финансов, бухгалтерского учета, анализа и аудита, по экономическим специальностям; \nЧ – общее количество должностных лиц, осуществляющих ВМФК по состоянию на 1 число месяца, следующим за отчетным периодом","%",null,null,{"$f":"VLOOKUP(H22,Контроль!A95:E195,2,FALSE)","v":1},{"$f":"IFERROR(ROUND((('5. Оценка кач-ва'!D23+'5. Оценка кач-ва'!D24)/('5. Оценка кач-ва'!D18+'5. Оценка кач-ва'!D22)*100),0),0)","v":33}]
[null,null,"Р = 100%","баллы",5]
[null,null,"Р = 75% до <100%","баллы",4]
[null,null,"Р = 50% до <75%","баллы",3]
[null,null,"Р = 40% до <50%","баллы",2]
[null,null,"Р = 25% до <40%","баллы",1]
[null,null,"Р < 25%","баллы",0]
["2.2","Повышение квалификации по направлению деятельности","Р = 100*Чп/Ч, где, \nЧп – количество должностных лиц, осуществляющих ВМФК, обладающих свидетельствами (сертификатами) о прохождении повышения квалификации по направлению деятельности в течение последних трех лет; \nЧ – общее количество должностных лиц, осуществляющих ВМФК по состоянию на 1 число месяца, следующим за отчетным периодом ","%",null,null,{"$f":"VLOOKUP(H29,Контроль!A95:E195,3,FALSE)","v":0},{"$f":"IFERROR(ROUND('5. Оценка кач-ва'!D25/('5. Оценка кач-ва'!D18+'5. Оценка кач-ва'!D22)*100,0),0)","v":0}]
[null,null,"Р = 100%","баллы",5]
[null,null,"Р = 75% до <100%","баллы",4]
[null,null,"Р = 60% до <75%","баллы",3]
[null,null,"Р = 45% до <60%","баллы",2]
[null,null,"Р = 30% до <45%","баллы",1]
[null,null,"Р < 30%","баллы",0]
["2.3","Оснащенность рабочего места ","Р = 100*((С+К+П+И)/4)/Ч, \nС – количество должностных лиц, осуществляющих ВМФК, имеющих отдельный рабочий стол; \nК – количество должностных лиц, осуществляющих ВМФК имеющих закрепленную компьютерную технику; \nП – количество должностных лиц, осуществляющих ВМФК имеющие на рабочем месте доступ к программным продуктам (Консультант, Гарант и др.); \nИ – количество должностных лиц, осуществляющих ВМФК имеющих на рабочем месте доступ к интернету ","%",null,null,{"$f":"VLOOKUP(H36,Контроль!A95:E195,3,FALSE)","v":1},{"$f":"IFERROR(ROUND(('5. Оценка кач-ва'!D26+'5. Оценка кач-ва'!D27+'5. Оценка кач-ва'!D28+'5. Оценка кач-ва'!D29)*25/('5. Оценка кач-ва'!D18+'5. Оценка кач-ва'!D22),0),0)","v":33}]
[null,null,"Р = 100%","баллы",5]
[null,null,"Р = 75% до <100%","баллы",4]
[null,null,"Р = 60% до <75%","баллы",3]
[null,null,"Р = 45% до <60%","баллы",2]
[null,null,"Р = 30% до <45%","баллы",1]
[null,null,"Р < 30%","баллы",0]
["2.4","Возложение на должностное лицо, осуществляющее ВМФК других функций, кроме контрольной","Р = 100*Чф/Ч, где, \nЧф – количество должностных лиц, осуществляющих ВМФК, выполняющие другие функции кроме контрольной; \nЧ – общее количество должностных лиц, осуществляющих ВМФК по состоянию на 1 число месяца, следующим за отчетным периодом","%",null,"контроль в сфере закупок (ч.8 ст.99 ФЗ № 44-ФЗ) относится к контрольной функции",{"$f":"VLOOKUP(H43,Контроль!A95:E195,4,FALSE)","v":5},{"$f":"IFERROR(ROUND('5. Оценка кач-ва'!D30/('5. Оценка кач-ва'!D18+'5. Оценка кач-ва'!D22)*100,0),0)","v":33}]
[null,null,"Р < 40%","баллы",5]
[null,null,"Р = 40% до <75%","баллы",3]
[null,null,"Р = 75% до 100%","баллы",0]
["2.5","Соблюдение профессиональных стандартов и этики служебного поведения","Отсутствие жалоб по контрольной деятельности на должностных лиц, осуществляющих ВМФК","баллы",5,null,{"$f":"IF('5. Оценка кач-ва'!D31=0,5,0)","v":5}]
[null,null,"Наличие жалоб по контрольной деятельности на должностных лиц, осуществляющих ВМФК","баллы",0]
["3. Интенсивность и результативность контрольных мероприятий органа внутреннего  муниципального финансового контроля"]
["3.1","Планирование контрольной деятельности органа ВМФК","Наличие плана контрольных мероприятий на отчетный период","баллы",5,null,{"$f":"IF('5. Оценка кач-ва'!D32=\"Да\",5,0)","v":5}]
[null,null,"Отсутствие плана контрольных мероприятий на отчетный период","баллы",0]
["3.2","Выполнение плана по осуществлению ВМФК","Р = 100*Кз/Кп, \nКз – количество проведенных (завершенных) плановых контрольных мероприятий в отчетном периоде; \nКп – количество контрольных мероприятий по утвержденному плану","%",null,null,{"$f":"VLOOKUP(H52,Контроль!A95:E195,3,FALSE)","v":{"$error":"#N/A"}},{"$f":"IFERROR(ROUND('5. Оценка кач-ва'!D33/'5. Оценка кач-ва'!D34*100,0),0)","v":200}]
[null,null,"Р = 100%","баллы",5]
[null,null,"Р = 75% до <100%","баллы",4]
[null,null,"Р = 60% до <75%","баллы",3]
[null,null,"Р = 45% до <60%","баллы",2]
[null,null,"Р = 30% до <45%","баллы",1]
[null,null,"Р < 30%","баллы",0]
["3.3","Количество контрольных мероприятий по ВМФК, проведенных в муниципальном образовании в отчетном периоде на одно должностное лицо, осуществляющее ВМФК","Р = Кф/Ч, \nКф – количество проведенных (завершенных) плановых и внеплановых контрольных мероприятий в отчетном периоде, \nЧ – общее количество должностных лиц, осуществляющих ВМФК по состоянию на 1 число месяца, следующим за отчетным периодом","ед.",null,null,{"$f":"IF(H59>=9.3,5,IF(H59>=7.7,4,IF(H59>=5.5,3,IF(H59>=3.3,2,IF(H59>=1.6,1,0)))))","v":0},{"$f":"IFERROR(('5. Оценка кач-ва'!D34+'5. Оценка кач-ва'!D35)/('5. Оценка кач-ва'!D18+'5. Оценка кач-ва'!D22),0)","v":0.66666666666666663}]
[null,null,"Р = ≥Кср. + (70*Кср/100), \nКср - среднее количество контрольных мероприятий на одно должностное лицо, осуществляющее ВМФК, в целом по всем муниципальным образованиям, сложившееся по результатам контрольных мероприятий в предшествующем отчетному периоде","баллы",5,"Кср в 2016 г. = 5,5; 5,5+(70*5,5/100) = 9,3 Кср указывается в запросе Рабочей группы"]
[null,null,"Р = от ≥Кср + (40*Кср/100) до <Кср + (70*Кср/100)","баллы",4,"Кср в 2016 г. = 5,5; 5,5+(40*5,5/100) = 7,7"]
[null,null,"Р = от Кср до <Кср + (40*Кср/100)","баллы",3,"Кср в 2016 г. = 5,5"]
[null,null,"Р = от ≥Кср ‑ (40*Кср/100) до <Кср ","баллы",2,"Кср в 2016 г. = 5,5; 5,5-(40*5,5/100) = 3,3"]
[null,null,"Р = от ≥Кср ‑ (70*Кср/100) до <Кср","баллы",1,"Кср в 2016 г. = 5,5; 5,5-(70*5,5/100) = 1,6"]
[null,null,"Р= 0 до <Кср ‑ (70*Кср/100) ","баллы",0,"Кср в 2016 г. = 5,5"]
["3.4","Результативность контрольных мероприятий","Р = 100*Кр/К, \nКр – количество результативных контрольных мероприятий проведенных в отчетном периоде, \nК – общее количество контрольных мероприятий проведенных в отчетном периоде","%",null,"результативное мероприятие – мероприятие, в котором выявлены финансовые и нефинансовые нарушения",{"$f":"VLOOKUP(H66,Контроль!A95:E195,3,FALSE)","v":0},{"$f":"IFERROR(ROUND(100*'5. Оценка кач-ва'!D38/'5. Оценка кач-ва'!D34,0),0)","v":0}]
[null,null,"Р = 100%","баллы",5]
[null,null,"Р = 75% до <100%","баллы",4]
[null,null,"Р = 60% до <75%","баллы",3]
[null,null,"Р = 45% до <60%","баллы",2]
[null,null,"Р = 30% до <45%","баллы",1]
[null,null,"Р = <30%","баллы",0]
["3.5","Эффективность контрольных мероприятий","Р = 100*Км/К, \nКм – количество контрольных мероприятий, по которым объекту контроля направлены представления, предписания, заключения, уведомления, письма, служебные записки, \nК – общее количество контрольных мероприятий проведенных в отчетном периоде",null,null,null,{"$f":"VLOOKUP(H73,Контроль!A95:E195,3,FALSE)","v":5},{"$f":"IFERROR(ROUND('5. Оценка кач-ва'!D39/('5. Оценка кач-ва'!D34+'5. Оценка кач-ва'!D35)*100,0),0)","v":100}]
[null,null,"Р = 100%","баллы",5]
[null,null,"Р = 75% до <100%","баллы",4]
[null,null,"Р = 60% до <75%","баллы",3]
[null,null,"Р = 45% до <60%","баллы",2]
[null,null,"Р = 30% до <45%","баллы",1]
[null,null,"Р = <30%","баллы",0]
["3.6","Исполнительность мер, предъявленных по результатам контрольных мероприятий","Р = 100*Км/К, \nКм – количество контрольных мероприятий, по которым приняты меры по предъявленным представлениям, предписаниям, заключениям, уведомлениям, письмам, служебным запискам, \nК – общее количество контрольных мероприятий, по которым объекту контроля направлены представления, предписания, заключения, уведомления, письма, служебные записки",null,null,"показатель рассчитывается с учетом пояснений органа ВМФК",{"$f":"VLOOKUP(H80,Контроль!A95:E195,5,FALSE)","v":5},{"$f":"IFERROR(ROUND('5. Оценка кач-ва'!D40/'5. Оценка кач-ва'!D39*100,0),0)","v":100}]
[null,null,"Р = 80% до 100%","баллы",5]
[null,null,"Р = 40% до <80%","баллы",3]
[null,null,"Р = 20% до <40%","баллы",1]
[null,null,"Р = <20%","баллы",0]
["3.7","Эффективность мер, предъявленных по результатам контрольных мероприятий","Р = 100*Св/Сн, \nСв – объемы денежных средств, взысканные (восстановленные) в доход бюджета муниципального образования, \nСн – объемы денежных средств, подлежащие взысканию (восстановлению) в доход бюджета муниципального образования","%",null,null,{"$f":"VLOOKUP(H85,Контроль!A95:E195,3,FALSE)","v":0},{"$f":"IFERROR(ROUND('5. Оценка кач-ва'!D44/'5. Оценка кач-ва'!D43*100,0),0)","v":0}]
[null,null,"Р = 100%","баллы",5]
[null,null,"Р = 75% до <100%","баллы",4]
[null,null,"Р = 60% до <75%","баллы",3]
[null,null,"Р = 45% до <60%","баллы",2]
[null,null,"Р = 30% до <45%","баллы",1]
[null,null,"Р = <30%","баллы",0]
["3.8","Эффективность реализации материалов","Р = 100*Пн/Поб, \nПн - количество признанных судами незаконными предписаний и представлений, \nПоб - общее количество предписаний и представлений","%",null,null,{"$f":"5-VLOOKUP(H92,Контроль!A95:E195,3,FALSE)","v":5},{"$f":"IFERROR(ROUND('5. Оценка кач-ва'!D45/'3. ФК-1'!AH73*100,0),0)","v":0}]
[null,null,"Р = 100%","баллы",0]
[null,null,"Р = 75% до <100%","баллы",1]
[null,null,"Р = 60% до <75%","баллы",2]
[null,null,"Р = 45% до <60%","баллы",3]
[null,null,"Р = 30% до <45%","баллы",4]
[null,null,"Р = 0% до <30%","баллы",5]
["3.9","Эффективность административного производства по делам об АП","Наличие составленных протоколов об административном правонарушении","баллы",5,null,{"$f":"IF('5. Оценка кач-ва'!D46>0,5,0)","v":0}]
[null,null,"Отсутствие составленных протоколов об административном правонарушении","баллы",0]
["3.10","Эффективность работы по направлению уведомлений по бюджетным мерам принуждения ","Р = 100*Ув/У, \nУв - возвращенные уведомления по причине неправильной квалификации фактов нарушений и нарушения сроков направления уведомлений, установленных БК РФ, \nУ - общее количество направленных уведомлений","%",null,null,{"$f":"5-VLOOKUP(H101,Контроль!A95:E195,3,FALSE)","v":5},{"$f":"IFERROR(ROUND('5. Оценка кач-ва'!D52/'5. Оценка кач-ва'!D51*100,0),0)","v":0}]
[null,null,"Р = 100%","баллы",0]
[null,null,"Р = 75% до <100%","баллы",1]
[null,null,"Р = 60% до <75%","баллы",2]
[null,null,"Р = 45% до <60%","баллы",3]
[null,null,"Р = 30% до <45%","баллы",4]
[null,null,"Р = 0% до <30%","баллы",5]
["4. Открытость, доступность и креативность контрольной деятельности"]
["4.1*","Размещение информации на официальном сайте органа ВМФК","Общий балл","баллы",null,"общий балл определяется путем суммирования баллов по п.4.1.1-4.1.5",{"$f":"SUM(G110:G124)","v":20}]
["4.1.1",null,"Наличие информации о реквизитах контрольного органа","баллы",1,null,{"$f":"IF('5. Оценка кач-ва'!D69=\"Да\",1,0)","v":1}]
[null,null,"Отсутствие информации о реквизитах контрольного органа","баллы",0]
["4.1.2",null,"Наличие сведений о руководстве органа ВМФК","баллы",1,null,{"$f":"IF('5. Оценка кач-ва'!D70=\"Да\",1,0)","v":1}]
[null,null,"Отсутствие сведений о руководстве органа ВМФК","баллы",0]
["4.1.3",null,"Наличие опубликованных отчетов о результатах контрольной деятельности","баллы",1,null,{"$f":"IF('5. Оценка кач-ва'!D71=\"Да\",1,0)","v":1}]
[null,null,"Отсутствие опубликованных отчетов о результатах контрольной деятельности","баллы",0]
["4.1.4",null,"Наличие МПА, регламентирующих контрольную деятельность","баллы",1,null,{"$f":"IF('5. Оценка кач-ва'!D72=\"Да\",1,0)","v":1}]
[null,null,"Отсутствие МПА, регламентирующих контрольную деятельность","баллы",0]
["4.1.5",null,"Наличие информации о типовых нарушениях и иных разъяснений по вопросам контроля","баллы",1,null,{"$f":"IF('5. Оценка кач-ва'!D73=\"Да\",1,0)","v":1}]
[null,null,"Отсутствие информации о типовых нарушениях и иных разъяснений по вопросам контроля","баллы",0]
["4.2","Проведение органами ВМФК мониторинга выявленных нарушений бюджетного законодательства в отчетном периоде","Наличие результатов мониторинга","баллы",5,null,{"$f":"IF('5. Оценка кач-ва'!D74=\"Да\",5,0)","v":5}]
[null,null,"Отсутствие результатов мониторинга","баллы",0]
["4.3","Проведение информационной работы по предупреждению нарушений бюджетного законодательства (письма, совещания, аналитические записки, др.)","Наличие информационной работы по предупреждению нарушений","баллы",5,null,{"$f":"IF('5. Оценка кач-ва'!D75=\"Да\",5,0)","v":5}]
[null,null,"Отсутствие информационной работы по предупреждению нарушений","баллы",0]
["4.4","Оказание методической помощи по вопросам контрольной деятельности органам ВМФК поселений, входящих в муниципальный район, главным распорядителям и администраторам средств бюджета МО","Наличие методической помощи органам ВМФК поселений","баллы",5,null,{"$f":"IF('5. Оценка кач-ва'!D76=\"Да\",5,0)","v":5}]
[null,null,"Отсутствие методической помощи органам ВМФК поселений","баллы",0]
["Итоговое количество баллов:",null,null,null,null,null,{"$f":"SUM(G5:G109)","v":{"$error":"#N/A"}}]

{"sheet":"Контроль","index":6,"n_rows":195,"n_cols":5,"rows_kept":195,"cut":false,"hidden":true,"merged":[]}
["Уровень"]
["Государственный",null,"Общегосударственные вопросы"]
["Муниципальный",null,"Национальная оборона"]
[null,null,"Национальная безопасность и правоохранительная деятельность"]
["Дата",null,"Национальная экономика"]
["1 апреля ",null,"Жилищно-коммунальное хозяйство"]
["1 июля ",null,"Охрана окружающей среды"]
["1 октября ",null,"Образование"]
["1 января ",null,"Культура, кинематография"]
[null,null,"Здравоохранение"]
["Год",null,"Социальная политика"]
["2017 года",null,"Физическая культура и спорт"]
["2018 года",null,"Средства массовой информации"]
["2019 года",null,"Обслуживание государственного и муниципального долга"]
["2020 года",null,"Межбюджетные трансферты общего характера бюджетам бюджетной системы российской федерации"]
["2021 года"]
["2022 года"]
["2023 года"]
["2024 года"]
[null,null,"Не используется"]
["МО",null,"ГРБС"]
["ГО г. Агидель РБ",null,"Агентство по печати и средствам массовой информации РБ"]
["ГО г. Кумертау РБ",null,"Государственная инспекция по надзору за техническим состоянием самоходных машин и других видов техники РБ"]
["ГО г. Нефтекамск РБ",null,"Государственный комитет РБ по внешнеэкономическим связям"]
["ГО г. Октябрьский РБ",null,"Государственный комитет РБ по делам юстиции"]
["ГО г. Салават РБ",null,"Государственный комитет РБ по жилищному и строительному надзору"]
["ГО г. Сибай РБ",null,"Государственный комитет РБ по информатизации и вопросам функционирования системы «Открытая Республика»"]
["ГО г. Стерлитамак РБ",null,"Государственный комитет РБ по предпринимательству и туризму"]
["ГО г. Уфа РБ",null,"Государственный комитет РБ по строительству и архитектуре"]
["ЗАТО г. Межгорье РБ",null,"Государственный комитет РБ по тарифам"]
["МР Абзелиловский район РБ",null,"Государственный комитет РБ по торговле и защите прав потребителей"]
["МР Альшеевский район РБ",null,"Государственный комитет РБ по транспорту и дорожному хозяйству"]
["МР Архангельский район РБ",null,"Государственный комитет РБ по чрезвычайным ситуациям"]
["МР Аскинский район РБ",null,"Министерство жилищно-коммунального хозяйства РБ"]
["МР Аургазинский район РБ",null,"Министерство здравоохранения РБ"]
["МР Баймакский район РБ",null,"Министерство земельных и имущественных отношений РБ"]
["МР Бакалинский район РБ",null,"Министерство культуры РБ"]
["МР Балтачевский район РБ",null,"Министерство лесного хозяйства РБ"]
["МР Белебеевский район РБ",null,"Министерство молодежной политики и спорта РБ"]
["МР Белокатайский район РБ",null,"Министерство образования РБ"]
["МР Белорецкий район РБ",null,"Министерство природопользования и экологии РБ"]
["МР Бижбулякский район РБ",null,"Министерство промышленности и инновационной политики РБ"]
["МР Бирский район РБ",null,"Министерство сельского хозяйства РБ"]
["МР Благоварский район РБ",null,"Министерство семьи, труда и социальной защиты населения РБ"]
["МР Благовещенский район РБ",null,"Министерство финансов РБ"]
["МР Буздякский район РБ",null,"Министерство экономического развития РБ"]
["МР Бураевский район РБ",null,"Уполномоченный по правам ребенка в Республике Башкортостан"]
["МР Бурзянский район РБ",null,"Управление ветеринарии РБ"]
["МР Гафурийский район РБ",null,"Управление по государственной охране объектов культурного наследия РБ"]
["МР Давлекановский район РБ",null,"Управление по делам архивов РБ"]
["МР Дуванский район РБ",null,"Управление по контролю и надзору в сфере образования РБ"]
["МР Дюртюлинский район РБ"]
["МР Ермекеевский район РБ"]
["МР Зианчуринский район РБ"]
["МР Зилаирский район РБ"]
["МР Иглинский район РБ"]
["МР Илишевский район РБ"]
["МР Ишимбайский район РБ"]
["МР Калтасинский район РБ"]
["МР Караидельский район РБ"]
["МР Кармаскалинский район РБ"]
["МР Кигинский район РБ"]
["МР Краснокамский район РБ"]
["МР Кугарчинский район РБ"]
["МР Кушнаренковский район РБ"]
["МР Куюргазинский район РБ"]
["МР Мелеузовский район РБ"]
["МР Мечетлинский район РБ"]
["МР Мишкинский район РБ"]
["МР Миякинский район РБ"]
["МР Нуримановский район РБ"]
["МР Салаватский район РБ"]
["МР Стерлибашевский район РБ"]
["МР Стерлитамакский район РБ"]
["МР Татышлинский район РБ"]
["МР Туймазинский район РБ"]
["МР Уфимский район РБ"]
["МР Учалинский район РБ"]
["МР Федоровский район РБ"]
["МР Хайбуллинский район РБ"]
["МР Чекмагушевский район РБ"]
["МР Чишминский район РБ"]
["МР Шаранский район РБ"]
["МР Янаульский район РБ"]
[]
[]
[]
[]
["Для показателей качества"]
["Да"]
["Нет"]
[]
[null,"Пункты: 2.1","Пункты: 2.2, 2.3, 3.2, 3.4, 3.5, 3.7, 3.8, 3.10","Пункты: 2.4","Пункты: 3.6"]
["ВПР-%","ВПР-Баллы","ВПР-Баллы","ВПР-Баллы","ВПР-Баллы"]
[0,0,0,5,0]
[1,0,0,5,0]
[2,0,0,5,0]
[3,0,0,5,0]
[4,0,0,5,0]
[5,0,0,5,0]
[6,0,0,5,0]
[7,0,0,5,0]
[8,0,0,5,0]
[9,0,0,5,0]
[10,0,0,5,0]
[11,0,0,5,0]
[12,0,0,5,0]
[13,0,0,5,0]
[14,0,0,5,0]
[15,0,0,5,0]
[16,0,0,5,0]
[17,0,0,5,0]
[18,0,0,5,0]
[19,0,0,5,0]
[20,0,0,5,1]
[21,0,0,5,1]
[22,0,0,5,1]
[23,0,0,5,1]
[24,0,0,5,1]
[25,1,0,5,1]
[26,1,0,5,1]
[27,1,0,5,1]
[28,1,0,5,1]
[29,1,0,5,1]
[30,1,1,5,1]
[31,1,1,5,1]
[32,1,1,5,1]
[33,1,1,5,1]
[34,1,1,5,1]
[35,1,1,5,1]
[36,1,1,5,1]
[37,1,1,5,1]
[38,1,1,5,1]
[39,1,1,5,1]
[40,2,1,3,3]
[41,2,1,3,3]
[42,2,1,3,3]
[43,2,1,3,3]
[44,2,1,3,3]
[45,2,2,3,3]
[46,2,2,3,3]
[47,2,2,3,3]
[48,2,2,3,3]
[49,2,2,3,3]
[50,3,2,3,3]
[51,3,2,3,3]
[52,3,2,3,3]
[53,3,2,3,3]
[54,3,2,3,3]
[55,3,2,3,3]
[56,3,2,3,3]
[57,3,2,3,3]
[58,3,2,3,3]
[59,3,2,3,3]
[60,3,3,3,3]
[61,3,3,3,3]
[62,3,3,3,3]
[63,3,3,3,3]
[64,3,3,3,3]
[65,3,3,3,3]
[66,3,3,3,3]
[67,3,3,3,3]
[68,3,3,3,3]
[69,3,3,3,3]
[70,3,3,3,3]
[71,3,3,3,3]
[72,3,3,3,3]
[73,3,3,3,3]
[74,3,3,3,3]
[75,4,4,0,3]
[76,4,4,0,3]
[77,4,4,0,3]
[78,4,4,0,3]
[79,4,4,0,3]
[80,4,4,0,5]
[81,4,4,0,5]
[82,4,4,0,5]
[83,4,4,0,5]
[84,4,4,0,5]
[85,4,4,0,5]
[86,4,4,0,5]
[87,4,4,0,5]
[88,4,4,0,5]
[89,4,4,0,5]
[90,4,4,0,5]
[91,4,4,0,5]
[92,4,4,0,5]
[93,4,4,0,5]
[94,4,4,0,5]
[95,4,4,0,5]
[96,4,4,0,5]
[97,4,4,0,5]
[98,4,4,0,5]
[99,4,4,0,5]
[100,5,5,0,5]